[Event "Titled Tuesday Blitz November 16 2021"]
[White "Tillyaev, Ulugbek"]
[Black "Pranav, V"]
[WhiteFideId "14202441"]
[BlackFideId "25060783"]
[WhiteElo "2341"]
[BlackElo "2351"]
[Result "0-1"]
[Round "06"]
[TimeControl "180+1"]
[Date "2021.11.16"]
[WhiteClock "0:00:05"]
[BlackClock "0:00:29"]

1. e4 {[%clk 0:03:00]}  e5 {[%clk 0:02:59]} 2. Nf3 {[%clk 0:03:00]}  Nc6 {[%clk 0:03:00]} 3. Bb5 {[%clk 0:03:00]}  a6 {[%clk 0:03:00]} 4. Ba4 {[%clk 0:03:00]}  Nf6 {[%clk 0:03:01]} 5. d4 {[%clk 0:03:00]}  exd4 {[%clk 0:02:58]} 6. e5 {[%clk 0:03:00]}  Ne4 {[%clk 0:02:56]} 7. O-O {[%clk 0:03:01]}  Nc5 {[%clk 0:02:50]} 8. Bxc6 {[%clk 0:03:00]}  dxc6 {[%clk 0:02:50]} 9. Nxd4 {[%clk 0:02:59]}  Ne6 {[%clk 0:02:50]} 10. c3 {[%clk 0:02:34]}  c5 {[%clk 0:02:40]} 11. Nf5 {[%clk 0:02:28]}  Qxd1 {[%clk 0:02:39]} 12. Rxd1 {[%clk 0:02:28]}  Bd7 {[%clk 0:02:40]} 13. Nd2 {[%clk 0:02:19]}  Nf4 {[%clk 0:02:37]} 14. Ne3 {[%clk 0:02:15]}  Bc6 {[%clk 0:02:21]} 15. Ndc4 {[%clk 0:02:06]}  b6 {[%clk 0:02:12]} 16. f3 {[%clk 0:02:04]}  Ne6 {[%clk 0:02:01]} 17. Nf5 {[%clk 0:01:51]}  Rd8 {[%clk 0:01:57]} 18. Rxd8+ {[%clk 0:01:49]}  Kxd8 {[%clk 0:01:57]} 19. Be3 {[%clk 0:01:48]}  Kc8 {[%clk 0:01:55]} 20. Rd1 {[%clk 0:01:40]}  Bb5 {[%clk 0:01:54]} 21. Na3 {[%clk 0:01:32]}  Bd7 {[%clk 0:01:47]} 22. Nc4 {[%clk 0:01:29]}  Nd8 {[%clk 0:01:46]} 23. g4 {[%clk 0:00:58]}  Be6 {[%clk 0:01:40]} 24. Nd2 {[%clk 0:00:23]}  Nc6 {[%clk 0:01:37]} 25. Bf4 {[%clk 0:00:18]}  h5 {[%clk 0:01:34]} 26. h3 {[%clk 0:00:15]}  hxg4 {[%clk 0:01:24]} 27. hxg4 {[%clk 0:00:15]}  g6 {[%clk 0:01:24]} 28. Ng3 {[%clk 0:00:11]}  Bg7 {[%clk 0:01:25]} 29. Re1 {[%clk 0:00:10]}  Re8 {[%clk 0:01:13]} 30. a3 {[%clk 0:00:08]}  Bd5 {[%clk 0:01:12]} 31. c4 {[%clk 0:00:08]}  Be6 {[%clk 0:01:13]} 32. Nde4 {[%clk 0:00:08]}  Nxe5 {[%clk 0:01:10]} 33. Ng5 {[%clk 0:00:07]}  Bxc4 {[%clk 0:01:07]} 34. Kg2 {[%clk 0:00:04]}  Kd7 {[%clk 0:00:52]} 35. Bd2 {[%clk 0:00:04]}  Nd3 {[%clk 0:00:50]} 36. Rxe8 {[%clk 0:00:04]}  Kxe8 {[%clk 0:00:49]} 37. b4 {[%clk 0:00:05]}  cxb4 {[%clk 0:00:48]} 38. axb4 {[%clk 0:00:05]}  Bf8 {[%clk 0:00:46]} 39. N5e4 {[%clk 0:00:04]}  Bxb4 {[%clk 0:00:46]} 40. Nf6+ {[%clk 0:00:05]}  Ke7 {[%clk 0:00:44]} 41. Bg5 {[%clk 0:00:05]}  Ke6 {[%clk 0:00:40]} 42. Nge4 {[%clk 0:00:05]}  Nc5 {[%clk 0:00:34]} 43. Ne8 {[%clk 0:00:03]}  Nxe4 {[%clk 0:00:34]} 44. fxe4 {[%clk 0:00:04]}  Kd7 {[%clk 0:00:31]} 45. Nf6+ {[%clk 0:00:04]}  Kc6 {[%clk 0:00:31]} 46. Kf3 {[%clk 0:00:03]}  Bc3 {[%clk 0:00:31]} 47. Ng8 {[%clk 0:00:01]}  a5 {[%clk 0:00:31]} 48. Ne7+ {[%clk 0:00:01]}  Kd7 {[%clk 0:00:31]} 49. Bf4 {[%clk 0:00:02]}  Kxe7 {[%clk 0:00:30]} 50. Bxc7 {[%clk 0:00:03]}  Bd4 {[%clk 0:00:30]} 51. e5 {[%clk 0:00:03]}  Kd7 {[%clk 0:00:29]} 52. Ke4 {[%clk 0:00:04]}  Kxc7 {[%clk 0:00:28]} 53. Kxd4 {[%clk 0:00:05]}  Be6 {[%clk 0:00:29]} 0-1


[Site "https://www.chess.com"]

[Event "Titled Tuesday Blitz November 16 2021"]
[White "Weetik, Vjacheslav"]
[Black "Czopor, Maciej"]
[WhiteFideId "4153472"]
[BlackFideId "21805431"]
[WhiteElo "2469"]
[BlackElo "1999"]
[Result "1-0"]
[Round "06"]
[TimeControl "180+1"]
[Date "2021.11.16"]
[WhiteClock "0:00:12"]
[BlackClock "0:00:01"]

1. Nf3 {[%clk 0:02:59]}  Nf6 {[%clk 0:02:50]} 2. g3 {[%clk 0:03:00]}  d5 {[%clk 0:02:50]} 3. Bg2 {[%clk 0:03:00]}  c5 {[%clk 0:02:50]} 4. O-O {[%clk 0:03:00]}  e6 {[%clk 0:02:51]} 5. d4 {[%clk 0:03:00]}  cxd4 {[%clk 0:02:52]} 6. Nxd4 {[%clk 0:03:00]}  e5 {[%clk 0:02:53]} 7. Nb3 {[%clk 0:02:56]}  Be6 {[%clk 0:02:45]} 8. c4 {[%clk 0:02:44]}  Nc6 {[%clk 0:02:41]} 9. cxd5 {[%clk 0:02:43]}  Nxd5 {[%clk 0:02:41]} 10. Nc3 {[%clk 0:02:35]}  Nxc3 {[%clk 0:02:38]} 11. bxc3 {[%clk 0:02:36]}  Be7 {[%clk 0:02:34]} 12. Be3 {[%clk 0:02:35]}  O-O {[%clk 0:02:03]} 13. Nc5 {[%clk 0:02:35]}  Bxc5 {[%clk 0:02:02]} 14. Bxc5 {[%clk 0:02:34]}  Qxd1 {[%clk 0:01:59]} 15. Rfxd1 {[%clk 0:02:34]}  Rfd8 {[%clk 0:02:00]} 16. Rdb1 {[%clk 0:02:08]}  Rd7 {[%clk 0:01:36]} 17. a4 {[%clk 0:01:54]}  Rc8 {[%clk 0:01:31]} 18. a5 {[%clk 0:01:48]}  a6 {[%clk 0:01:24]} 19. Be3 {[%clk 0:01:38]}  f6 {[%clk 0:01:22]} 20. Rb6 {[%clk 0:01:37]}  Kf7 {[%clk 0:01:19]} 21. f4 {[%clk 0:01:26]}  Rcc7 {[%clk 0:01:07]} 22. Kf2 {[%clk 0:01:01]}  Bc4 {[%clk 0:00:50]} 23. Rxb7 {[%clk 0:00:37]}  Rxb7 {[%clk 0:00:51]} 24. Bxc6 {[%clk 0:00:38]}  Bb5 {[%clk 0:00:19]} 25. Bxb7 {[%clk 0:00:35]}  Rxb7 {[%clk 0:00:20]} 26. Bc5 {[%clk 0:00:30]}  Rd7 {[%clk 0:00:19]} 27. Ke3 {[%clk 0:00:30]}  Ke6 {[%clk 0:00:14]} 28. Rc1 {[%clk 0:00:24]}  Rc7 {[%clk 0:00:12]} 29. Bb4 {[%clk 0:00:23]}  Rc4 {[%clk 0:00:13]} 30. Rd1 {[%clk 0:00:21]}  Rc7 {[%clk 0:00:06]} 31. Rd6+ {[%clk 0:00:21]}  Kf7 {[%clk 0:00:06]} 32. Rb6 {[%clk 0:00:20]}  h6 {[%clk 0:00:03]} 33. fxe5 {[%clk 0:00:18]}  fxe5 {[%clk 0:00:03]} 34. g4 {[%clk 0:00:16]}  Rd7 {[%clk 0:00:02]} 35. h4 {[%clk 0:00:15]}  Kg8 {[%clk 0:00:02]} 36. g5 {[%clk 0:00:13]}  hxg5 {[%clk 0:00:02]} 37. hxg5 {[%clk 0:00:14]}  Kf7 {[%clk 0:00:01]} 38. g6+ {[%clk 0:00:14]}  Ke8 {[%clk 0:00:02]} 39. Re6+ {[%clk 0:00:12]}  Kd8 {[%clk 0:00:01]} 40. Rxe5 {[%clk 0:00:12]}  Rd6 {[%clk 0:00:01]} 41. Bxd6 {[%clk 0:00:12]} 1-0


[Site "https://www.chess.com"]

[Event "Titled Tuesday Blitz November 16 2021"]
[White "Xiong, Jeffery"]
[Black "Paravyan, David"]
[WhiteFideId "2047640"]
[BlackFideId "4194985"]
[WhiteElo "2699"]
[BlackElo "2639"]
[Result "0-1"]
[Round "06"]
[TimeControl "180+1"]
[Date "2021.11.16"]
[WhiteClock "0:00:04"]
[BlackClock "0:00:08"]

1. d4 {[%clk 0:03:00]}  Nf6 {[%clk 0:02:58]} 2. c4 {[%clk 0:03:01]}  g6 {[%clk 0:02:59]} 3. Nc3 {[%clk 0:02:59]}  d5 {[%clk 0:02:59]} 4. Nf3 {[%clk 0:02:59]}  Bg7 {[%clk 0:02:59]} 5. h4 {[%clk 0:03:00]}  dxc4 {[%clk 0:02:57]} 6. e4 {[%clk 0:03:00]}  c5 {[%clk 0:02:58]} 7. d5 {[%clk 0:03:00]}  b5 {[%clk 0:02:58]} 8. h5 {[%clk 0:03:01]}  Nxh5 {[%clk 0:02:58]} 9. Nxb5 {[%clk 0:03:00]}  Bg4 {[%clk 0:02:58]} 10. Bxc4 {[%clk 0:02:59]}  Nd7 {[%clk 0:02:58]} 11. Kf1 {[%clk 0:02:58]}  O-O {[%clk 0:02:56]} 12. Be2 {[%clk 0:02:58]}  Qb8 {[%clk 0:02:56]} 13. Nc3 {[%clk 0:02:58]}  Nf4 {[%clk 0:02:38]} 14. Rh4 {[%clk 0:02:15]}  h5 {[%clk 0:02:29]} 15. Bb5 {[%clk 0:01:41]}  Bxc3 {[%clk 0:01:42]} 16. Bxd7 {[%clk 0:01:41]}  Bf6 {[%clk 0:01:30]} 17. Rxg4 {[%clk 0:01:05]}  hxg4 {[%clk 0:01:29]} 18. Nh2 {[%clk 0:01:06]}  Rd8 {[%clk 0:01:18]} 19. Bc6 {[%clk 0:01:05]}  Nxd5 {[%clk 0:01:13]} 20. exd5 {[%clk 0:00:48]}  Qxh2 {[%clk 0:01:13]} 21. Bxa8 {[%clk 0:00:49]}  Qh1+ {[%clk 0:01:01]} 22. Ke2 {[%clk 0:00:49]}  Qxd1+ {[%clk 0:00:44]} 23. Kxd1 {[%clk 0:00:50]}  Rxa8 {[%clk 0:00:45]} 24. Be3 {[%clk 0:00:51]}  Rd8 {[%clk 0:00:43]} 25. Ke2 {[%clk 0:00:27]}  Rxd5 {[%clk 0:00:17]} 26. Rc1 {[%clk 0:00:26]}  Bd4 {[%clk 0:00:08]} 27. Rc4 {[%clk 0:00:27]}  Re5 {[%clk 0:00:07]} 28. Kd3 {[%clk 0:00:17]}  g3 {[%clk 0:00:06]} 29. Bxd4 {[%clk 0:00:16]}  cxd4 {[%clk 0:00:07]} 30. f4 {[%clk 0:00:10]}  Re1 {[%clk 0:00:07]} 31. Rc2 {[%clk 0:00:05]}  Rf1 {[%clk 0:00:07]} 32. Ke4 {[%clk 0:00:05]}  Rf2 {[%clk 0:00:08]} 33. Rc8+ {[%clk 0:00:05]}  Kg7 {[%clk 0:00:08]} 34. Kxd4 {[%clk 0:00:04]}  Rxg2 {[%clk 0:00:08]} 0-1


[Site "https://www.chess.com"]

[Event "Titled Tuesday Blitz November 16 2021"]
[White "Andreikin, Dmitry"]
[Black "Zierk, Steven"]
[WhiteFideId "4158814"]
[BlackFideId "2034255"]
[WhiteElo "2736"]
[BlackElo "2494"]
[Result "1-0"]
[Round "07"]
[TimeControl "180+1"]
[Date "2021.11.16"]
[WhiteClock "0:00:24"]
[BlackClock "0:00:05"]

1. d4 {[%clk 0:03:00]}  d5 {[%clk 0:02:56]} 2. Nf3 {[%clk 0:03:00]}  Nf6 {[%clk 0:02:56]} 3. c4 {[%clk 0:03:00]}  c6 {[%clk 0:02:56]} 4. e3 {[%clk 0:02:57]}  Bf5 {[%clk 0:02:56]} 5. Nc3 {[%clk 0:02:56]}  e6 {[%clk 0:02:56]} 6. Nh4 {[%clk 0:02:56]}  Be4 {[%clk 0:02:53]} 7. f3 {[%clk 0:02:56]}  Bg6 {[%clk 0:02:53]} 8. Nxg6 {[%clk 0:02:56]}  hxg6 {[%clk 0:02:54]} 9. Qb3 {[%clk 0:02:56]}  Qc7 {[%clk 0:02:52]} 10. Bd2 {[%clk 0:02:55]}  Nbd7 {[%clk 0:02:48]} 11. cxd5 {[%clk 0:02:54]}  exd5 {[%clk 0:02:43]} 12. O-O-O {[%clk 0:02:54]}  O-O-O {[%clk 0:02:41]} 13. Kb1 {[%clk 0:02:51]}  Rxh2 {[%clk 0:02:27]} 14. Rxh2 {[%clk 0:02:25]}  Qxh2 {[%clk 0:02:27]} 15. e4 {[%clk 0:02:26]}  dxe4 {[%clk 0:01:48]} 16. fxe4 {[%clk 0:02:26]}  Qh4 {[%clk 0:01:45]} 17. Be1 {[%clk 0:02:08]}  Qg4 {[%clk 0:01:35]} 18. e5 {[%clk 0:02:05]}  Nxe5 {[%clk 0:01:12]} 19. dxe5 {[%clk 0:02:02]}  Qf5+ {[%clk 0:01:12]} 20. Ka1 {[%clk 0:01:50]}  Rxd1+ {[%clk 0:01:08]} 21. Qxd1 {[%clk 0:01:50]}  Qxf1 {[%clk 0:01:09]} 22. exf6 {[%clk 0:01:48]}  gxf6 {[%clk 0:01:07]} 23. Bg3 {[%clk 0:01:36]}  Qxg2 {[%clk 0:01:01]} 24. Qg4+ {[%clk 0:01:35]}  f5 {[%clk 0:01:00]} 25. Qf4 {[%clk 0:01:35]}  Kd7 {[%clk 0:00:37]} 26. a3 {[%clk 0:01:35]}  Be7 {[%clk 0:00:19]} 27. Qc7+ {[%clk 0:01:28]}  Ke6 {[%clk 0:00:20]} 28. Qe5+ {[%clk 0:01:28]}  Kd7 {[%clk 0:00:20]} 29. Ka2 {[%clk 0:01:22]}  Qf1 {[%clk 0:00:18]} 30. Qc7+ {[%clk 0:01:19]}  Ke6 {[%clk 0:00:19]} 31. Qc8+ {[%clk 0:01:16]}  Kf6 {[%clk 0:00:18]} 32. Qh8+ {[%clk 0:01:13]}  Ke6 {[%clk 0:00:17]} 33. Qe5+ {[%clk 0:01:11]}  Kd7 {[%clk 0:00:17]} 34. Ne2 {[%clk 0:01:04]}  Qg2 {[%clk 0:00:13]} 35. Qc7+ {[%clk 0:01:01]}  Ke8 {[%clk 0:00:14]} 36. Nc3 {[%clk 0:00:58]}  Qf1 {[%clk 0:00:11]} 37. Qxb7 {[%clk 0:00:43]}  Qc4+ {[%clk 0:00:11]} 38. Ka1 {[%clk 0:00:44]}  f4 {[%clk 0:00:10]} 39. Qb8+ {[%clk 0:00:42]}  Kd7 {[%clk 0:00:11]} 40. Bxf4 {[%clk 0:00:42]}  g5 {[%clk 0:00:10]} 41. Qc7+ {[%clk 0:00:41]}  Ke8 {[%clk 0:00:11]} 42. Qc8+ {[%clk 0:00:40]}  Bd8 {[%clk 0:00:11]} 43. Bxg5 {[%clk 0:00:39]}  f6 {[%clk 0:00:09]} 44. Be3 {[%clk 0:00:32]}  Qf1+ {[%clk 0:00:09]} 45. Nb1 {[%clk 0:00:32]}  Qb5 {[%clk 0:00:09]} 46. Qe6+ {[%clk 0:00:30]}  Be7 {[%clk 0:00:09]} 47. Bxa7 {[%clk 0:00:29]}  f5 {[%clk 0:00:09]} 48. Nc3 {[%clk 0:00:27]}  Qf1+ {[%clk 0:00:09]} 49. Ka2 {[%clk 0:00:27]}  Kf8 {[%clk 0:00:06]} 50. Bb8 {[%clk 0:00:24]}  f4 {[%clk 0:00:05]} 51. Qf5+ {[%clk 0:00:24]} 1-0


[Site "https://www.chess.com"]

[Event "Titled Tuesday Blitz November 16 2021"]
[White "Erdogdu, Mert"]
[Black "Ibrahimli, Murad"]
[WhiteFideId "6301495"]
[BlackFideId "13410229"]
[WhiteElo "2485"]
[BlackElo "2109"]
[Result "1/2-1/2"]
[Round "07"]
[TimeControl "180+1"]
[Date "2021.11.16"]
[WhiteClock "0:00:06"]
[BlackClock "0:00:13"]

1. e4 {[%clk 0:03:00]}  c5 {[%clk 0:02:59]} 2. Nf3 {[%clk 0:03:00]}  d6 {[%clk 0:02:59]} 3. d4 {[%clk 0:03:01]}  cxd4 {[%clk 0:03:00]} 4. Nxd4 {[%clk 0:03:02]}  Nf6 {[%clk 0:03:00]} 5. Nc3 {[%clk 0:03:03]}  a6 {[%clk 0:02:59]} 6. Be3 {[%clk 0:03:03]}  e6 {[%clk 0:02:57]} 7. f3 {[%clk 0:03:02]}  h5 {[%clk 0:02:57]} 8. Be2 {[%clk 0:02:58]}  Be7 {[%clk 0:02:55]} 9. a4 {[%clk 0:02:57]}  Bd7 {[%clk 0:02:49]} 10. O-O {[%clk 0:02:56]}  Nc6 {[%clk 0:02:50]} 11. Nb3 {[%clk 0:02:38]}  b6 {[%clk 0:02:39]} 12. Qd2 {[%clk 0:02:35]}  Qc7 {[%clk 0:02:37]} 13. Rfd1 {[%clk 0:02:32]}  h4 {[%clk 0:02:21]} 14. Qe1 {[%clk 0:02:22]}  Bc8 {[%clk 0:02:19]} 15. Qf2 {[%clk 0:02:17]}  Nd7 {[%clk 0:02:19]} 16. Nd2 {[%clk 0:01:57]}  Na5 {[%clk 0:02:10]} 17. Bd4 {[%clk 0:01:50]}  Kf8 {[%clk 0:02:02]} 18. Rac1 {[%clk 0:01:31]}  Bb7 {[%clk 0:01:59]} 19. f4 {[%clk 0:01:03]}  Bf6 {[%clk 0:01:26]} 20. Bxf6 {[%clk 0:01:01]}  Nxf6 {[%clk 0:01:27]} 21. Nf3 {[%clk 0:00:57]}  Nxe4 {[%clk 0:01:15]} 22. Nxe4 {[%clk 0:00:56]}  Bxe4 {[%clk 0:01:15]} 23. Qd4 {[%clk 0:00:55]}  Bxf3 {[%clk 0:00:52]} 24. Bxf3 {[%clk 0:00:55]}  Rd8 {[%clk 0:00:50]} 25. b4 {[%clk 0:00:46]}  Nb7 {[%clk 0:00:41]} 26. Rd3 {[%clk 0:00:33]}  d5 {[%clk 0:00:32]} 27. Rc3 {[%clk 0:00:31]}  Qd6 {[%clk 0:00:31]} 28. Qe5 {[%clk 0:00:28]}  f6 {[%clk 0:00:19]} 29. Qxd6+ {[%clk 0:00:28]}  Nxd6 {[%clk 0:00:18]} 30. Rc6 {[%clk 0:00:25]}  Ke7 {[%clk 0:00:19]} 31. Rxb6 {[%clk 0:00:24]}  Rb8 {[%clk 0:00:19]} 32. Rxa6 {[%clk 0:00:22]}  Rxb4 {[%clk 0:00:19]} 33. Ra1 {[%clk 0:00:22]}  Rc8 {[%clk 0:00:18]} 34. Ra7+ {[%clk 0:00:21]}  Rb7 {[%clk 0:00:18]} 35. Rxb7+ {[%clk 0:00:21]}  Nxb7 {[%clk 0:00:18]} 36. a5 {[%clk 0:00:22]}  Nc5 {[%clk 0:00:19]} 37. a6 {[%clk 0:00:21]}  Ra8 {[%clk 0:00:19]} 38. a7 {[%clk 0:00:22]}  Kd6 {[%clk 0:00:17]} 39. c4 {[%clk 0:00:22]}  Kc6 {[%clk 0:00:17]} 40. cxd5+ {[%clk 0:00:22]}  exd5 {[%clk 0:00:18]} 41. Kf2 {[%clk 0:00:19]}  Kb6 {[%clk 0:00:17]} 42. Bxd5 {[%clk 0:00:19]}  Rxa7 {[%clk 0:00:18]} 43. Rxa7 {[%clk 0:00:19]}  Kxa7 {[%clk 0:00:19]} 44. Kf3 {[%clk 0:00:19]}  Kb6 {[%clk 0:00:18]} 45. Kg4 {[%clk 0:00:20]}  Nd3 {[%clk 0:00:18]} 46. Bc4 {[%clk 0:00:19]}  Ne1 {[%clk 0:00:17]} 47. Bf1 {[%clk 0:00:18]}  Kc5 {[%clk 0:00:15]} 48. Kxh4 {[%clk 0:00:19]}  Kd6 {[%clk 0:00:16]} 49. Kh5 {[%clk 0:00:19]}  Ke7 {[%clk 0:00:16]} 50. Kg6 {[%clk 0:00:19]}  Kf8 {[%clk 0:00:16]} 51. h4 {[%clk 0:00:18]}  Nc2 {[%clk 0:00:16]} 52. g4 {[%clk 0:00:16]}  Ne3 {[%clk 0:00:17]} 53. Be2 {[%clk 0:00:16]}  Ng2 {[%clk 0:00:17]} 54. Kf5 {[%clk 0:00:09]}  Nxh4+ {[%clk 0:00:17]} 55. Ke4 {[%clk 0:00:10]}  g5 {[%clk 0:00:15]} 56. fxg5 {[%clk 0:00:09]}  fxg5 {[%clk 0:00:16]} 57. Bd1 {[%clk 0:00:10]}  Ke7 {[%clk 0:00:16]} 58. Be2 {[%clk 0:00:10]}  Kf6 {[%clk 0:00:16]} 59. Bd1 {[%clk 0:00:10]}  Ng6 {[%clk 0:00:17]} 60. Be2 {[%clk 0:00:10]}  Ne7 {[%clk 0:00:16]} 61. Ba6 {[%clk 0:00:09]}  Nc6 {[%clk 0:00:15]} 62. Bc8 {[%clk 0:00:07]}  Nd8 {[%clk 0:00:15]} 63. Bd7 {[%clk 0:00:08]}  Nf7 {[%clk 0:00:15]} 64. Kd5 {[%clk 0:00:06]}  Ne5 {[%clk 0:00:15]} 65. Bf5 {[%clk 0:00:06]}  Nf3 {[%clk 0:00:13]} 66. Ke4 {[%clk 0:00:06]}  Nh4 {[%clk 0:00:13]} 67. Bd7 {[%clk 0:00:06]}  Ke7 {[%clk 0:00:14]} 68. Bf5 {[%clk 0:00:05]}  Kf6 {[%clk 0:00:13]} 69. Bc8 {[%clk 0:00:05]}  Ng2 {[%clk 0:00:13]} 70. Kf3 {[%clk 0:00:04]}  Nf4 {[%clk 0:00:14]} 71. Ke3 {[%clk 0:00:04]}  Nd5+ {[%clk 0:00:14]} 72. Kf3 {[%clk 0:00:04]}  Ne7 {[%clk 0:00:15]} 73. Bd7 {[%clk 0:00:04]}  Ke5 {[%clk 0:00:14]} 74. Ba4 {[%clk 0:00:05]}  Ng6 {[%clk 0:00:13]} 75. Bd7 {[%clk 0:00:05]}  Nf8 {[%clk 0:00:14]} 76. Bc8 {[%clk 0:00:06]}  Ng6 {[%clk 0:00:14]} 77. Bf5 {[%clk 0:00:06]}  Nf4 {[%clk 0:00:14]} 78. Ke3 {[%clk 0:00:06]}  Nd5+ {[%clk 0:00:14]} 79. Kf3 {[%clk 0:00:06]}  Kd4 {[%clk 0:00:14]} 80. Bc8 {[%clk 0:00:07]}  Ne7 {[%clk 0:00:14]} 81. Bb7 {[%clk 0:00:07]}  Ng6 {[%clk 0:00:13]} 82. Bc8 {[%clk 0:00:07]}  Ne5+ {[%clk 0:00:14]} 83. Kg3 {[%clk 0:00:07]}  Ke3 {[%clk 0:00:15]} 84. Bf5 {[%clk 0:00:08]}  Nc4 {[%clk 0:00:15]} 85. Be6 {[%clk 0:00:08]}  Nd6 {[%clk 0:00:15]} 86. Bd7 {[%clk 0:00:08]}  Ne4+ {[%clk 0:00:15]} 87. Kg2 {[%clk 0:00:09]}  Kf4 {[%clk 0:00:15]} 88. Be6 {[%clk 0:00:09]}  Nf6 {[%clk 0:00:15]} 89. Bc8 {[%clk 0:00:09]}  Nxg4 {[%clk 0:00:15]} 90. Kg1 {[%clk 0:00:08]}  Ne5 {[%clk 0:00:15]} 91. Kg2 {[%clk 0:00:08]}  Nd3 {[%clk 0:00:16]} 92. Kh2 {[%clk 0:00:07]}  Ne1 {[%clk 0:00:15]} 93. Kg1 {[%clk 0:00:07]}  Nf3+ {[%clk 0:00:15]} 94. Kf2 {[%clk 0:00:07]}  Nd4 {[%clk 0:00:16]} 95. Kg2 {[%clk 0:00:07]}  Nb5 {[%clk 0:00:15]} 96. Bd7 {[%clk 0:00:07]}  Nd6 {[%clk 0:00:15]} 97. Be6 {[%clk 0:00:08]}  Nb7 {[%clk 0:00:12]} 98. Bd7 {[%clk 0:00:08]}  Nc5 {[%clk 0:00:13]} 99. Bc8 {[%clk 0:00:08]}  Ne4 {[%clk 0:00:13]} 100. Bd7 {[%clk 0:00:07]}  Ng3 {[%clk 0:00:13]} 101. Bc8 {[%clk 0:00:07]}  Nh5 {[%clk 0:00:12]} 102. Bd7 {[%clk 0:00:07]}  Nf6 {[%clk 0:00:12]} 103. Bc8 {[%clk 0:00:07]}  Ne4 {[%clk 0:00:12]} 104. Bd7 {[%clk 0:00:07]}  Nd2 {[%clk 0:00:12]} 105. Bc8 {[%clk 0:00:07]}  Nb1 {[%clk 0:00:13]} 106. Bd7 {[%clk 0:00:07]}  Nc3 {[%clk 0:00:14]} 107. Bc8 {[%clk 0:00:07]}  Nd1 {[%clk 0:00:14]} 108. Bd7 {[%clk 0:00:07]}  Ne3+ {[%clk 0:00:15]} 109. Kf2 {[%clk 0:00:07]}  Nc2 {[%clk 0:00:14]} 110. Kg2 {[%clk 0:00:07]}  Na3 {[%clk 0:00:15]} 111. Bc8 {[%clk 0:00:07]}  Nc4 {[%clk 0:00:15]} 112. Bd7 {[%clk 0:00:07]}  Nb6 {[%clk 0:00:14]} 113. Be6 {[%clk 0:00:07]}  Ke5 {[%clk 0:00:14]} 114. Bh3 {[%clk 0:00:06]}  Nd5 {[%clk 0:00:15]} 115. Kg3 {[%clk 0:00:06]}  Nf6 {[%clk 0:00:12]} 116. Bc8 {[%clk 0:00:06]}  Ke4 {[%clk 0:00:11]} 117. Be6 {[%clk 0:00:05]}  Ke5 {[%clk 0:00:11]} 118. Bc8 {[%clk 0:00:05]}  Kd6 {[%clk 0:00:12]} 119. Bf5 {[%clk 0:00:03]}  Ke7 {[%clk 0:00:13]} 120. Bc8 {[%clk 0:00:03]}  Kf8 {[%clk 0:00:14]} 121. Bf5 {[%clk 0:00:04]}  Kg7 {[%clk 0:00:15]} 122. Bc8 {[%clk 0:00:04]}  Kg6 {[%clk 0:00:16]} 123. Be6 {[%clk 0:00:04]}  Ne4+ {[%clk 0:00:15]} 124. Kg4 {[%clk 0:00:04]}  Kf6 {[%clk 0:00:15]} 125. Bc8 {[%clk 0:00:04]}  Nf2+ {[%clk 0:00:15]} 126. Kf3 {[%clk 0:00:04]}  Nd3 {[%clk 0:00:16]} 127. Kg3 {[%clk 0:00:04]}  Ne5 {[%clk 0:00:16]} 128. Bh3 {[%clk 0:00:03]}  Nc6 {[%clk 0:00:15]} 129. Bc8 {[%clk 0:00:03]}  Nd4 {[%clk 0:00:15]} 130. Bd7 {[%clk 0:00:04]}  Ne2+ {[%clk 0:00:13]} 131. Kf2 {[%clk 0:00:03]}  Nf4 {[%clk 0:00:13]} 132. Kg3 {[%clk 0:00:04]}  Ke7 {[%clk 0:00:11]} 133. Bc8 {[%clk 0:00:04]}  Kf7 {[%clk 0:00:11]} 134. Kg4 {[%clk 0:00:04]}  Kf6 {[%clk 0:00:11]} 135. Kg3 {[%clk 0:00:05]}  Ng6 {[%clk 0:00:12]} 136. Bd7 {[%clk 0:00:05]}  Ne5 {[%clk 0:00:12]} 137. Bc8 {[%clk 0:00:06]}  Kg6 {[%clk 0:00:12]} 138. Be6 {[%clk 0:00:06]}  Kg7 {[%clk 0:00:12]} 139. Bc8 {[%clk 0:00:06]}  Kf6 {[%clk 0:00:13]} 1/2-1/2


[Site "https://www.chess.com"]